[Event "FIDE Zonal 4-2 Open 2023"]
[Site "Dimbroko"]
[Date "2023.03.30"]
[Round "8.2"]
[White "Abdulraheem Abdulrahman Akinto"]
[Black "Bobby Ballah"]
[Result "1-0"]
[ECO "C54"]
[WhiteElo "2302"]
[BlackElo "1914"]
[Annotator "TA"]
[PlyCount "113"]
[EventDate "2023.03.25"]
[EventType "swiss"]
[EventCountry "IVO"]
[SourceTitle "playchess.com"]
[Source "ChessBase"]
[SourceQuality "1"]
[TimeControl "40/5400+30:1800+30"]

{[%evp 12,113,24,-14,-7,-21,-29,-39,-6,-7,-5,-10,-6,-36,-20,-10,-20,-28,0,-60,-56,-61,-55,-63,-25,-71,-70,-71,-68,-86,108,102,227,189,289,285,400,205,204,203,197,200,1410,704,641,-21,73,65,57,69,52,21,20,23,30,4,24,6,24,14,25,5,64,32,179,175,160,159,292,263,281,277,652,611,761,745,12833,12834,12834,12835,12835,12835,12838,12838,12838,12839,12839,12840,12841,12840,12840,12839,12839,12840,12840,12839,12837,0,12837,0,9450,0,12842,12842]} 1. e4 {[%emt 0:00:03]} e5 {[%emt 0:00:27]} 2. Nf3 {[%emt 0:00:55]} Nc6 {[%emt 0:00:14]} 3. Bc4 {[%emt 0:00:10]} Nf6 {[%emt 0:00:05]} 4. d3 {[%emt 0:00:09]} Bc5 {[%emt 0:00:06]} 5. c3 {[%emt 0:00:11]} h6 {[%emt 0:02:50]} 6. b4 Bb6 {[%emt 0:03:25] 6...Be7 is the hot move.} 7. b5 {[%emt 0:05:03]} Na5 {[%emt 0:01:36] C54: Giuoco Piano: 4 c3 Nf6, main lines with 5 d4 and 5 d3.} 8. Nxe5 {[%emt 0:02:31]} O-O {[%emt 0:09:57]} 9. O-O {[%emt 0:15:24]} d6 {[%emt 0:01:15] Black is slightly better.} (9... Qe8 $5 {[%cal Re8e5]} 10. Ng4 Nxg4 11. Qxg4 d5 $11) 10. Nxf7 {[%emt 0:01:02]} Rxf7 {[%emt 0:00:08]} 11. Bxf7+ {[%emt 0:00:09]} Kxf7 {[%emt 0:00:05]} 12. h3 {[%emt 0:04:50]} Bd7 {[%emt 0:05:56][%mdl 1024] Black has compensation.} 13. a4 {[%emt 0:00:50] [#]} Qe7 $146 {[%emt 0:02:26]} ({Predecessor:} 13... c6 14. Na3 Be6 15. Be3 Nb3 16. Rb1 Nc5 17. Bd4 Kg8 18. f4 Rc8 19. Kh1 Kh8 {1-0 Ieong,S (1675)-Gomboluudev,E (1625) World ol U16 2015 (9.1)}) 14. Re1 {[%emt 0:03:25]} Rf8 {[%emt 0:02:11]} 15. d4 {[%emt 0:03:01]} ({Better is} 15. Be3 $11) 15... Kg8 $15 {[%emt 0:07:07]} (15... Nxe4 $2 16. Nd2 $18) 16. Nd2 {[%emt 0:04:27]} Qf7 {[%emt 0:02:23]} 17. Re3 {[%emt 0:05:54]} a6 {[%emt 0:06:47]} 18. Qe2 {[%emt 0:07:17]} (18. Rf3 $11 {deserves consideration.} Re8 19. Qc2) 18... Nh5 $17 {[%emt 0:06:40]} 19. Rf3 {[%emt 0:01:37]} Nf4 {[%emt 0:02:46]} 20. Qe3 {[%emt 0:06:03]} c5 $2 {[%emt 0:10:48]} ({Reject} 20... axb5 $6 21. Kh2 $11) (20... g5 $1 $17) 21. bxc6 $1 $16 {[%emt 0:03:56]} Bxc6 {[%emt 0:04:29]} (21... Nxc6 $2 22. Rb1 Bd8 23. Rxb7 $18) (21... bxc6 $16 22. Ba3 c5) 22. Kh2 {[%emt 0:03:00] Strongly threatening Ba3.} Bd8 {[%emt 0:14:05]} (22... d5 $142) 23. g3 $18 {[%emt 0:00:50][%cal Rf3f4]} Bg5 {[%emt 0:00:23]} (23... Re8 $142 24. Rxf4 (24. gxf4 Nc4 $16) 24... Bg5 25. Rxf7 Bxe3) 24. gxf4 {[%emt 0:00:10]} (24. Ba3 $142) 24... Bxf4+ {[%emt 0:00:17] [#]} 25. Rxf4 $1 {[%emt 0:00:08]} Qxf4+ {[%emt 0:00:05]} 26. Qxf4 {[%emt 0:00:25]} Rf6 {[%emt 0:16:59]} (26... Rxf4 27. f3 Rf6) 27. Qf5 Rxf5 {[%emt 0:00:00]} 28. Nc4 $2 {[%emt 0:04:04]} (28. exf5 $18 d5 29. Kg3) 28... Rxf2+ {[%emt 0:00:00]} (28... Bxe4 $11 {keeps the balance.} 29. Nxa5 Rxa5) 29. Kg1 $16 {[%emt 0:00:47]} Nxc4 {[%emt 0:00:00]} 30. Kxf2 {[%emt 0:00:09]} Bxe4 $14 {[%emt 0:00:00][%mdl 4096] Endgame KRB-KBN} 31. Bf4 {[%emt 0:02:15]} g5 {[%emt 0:00:00]} 32. Bg3 {[%emt 0:02:34]} Kf7 {[%emt 0:00:00]} 33. Ke2 {[%emt 0:02:22]} Bc6 {[%emt 0:00:00]} 34. Rb1 {[%emt 0:01:54]} h5 {[%emt 0:00:00]} 35. Kd3 {[%emt 0:07:25]} d5 {[%emt 0:00:00]} 36. Bc7 {[%emt 0:09:31]} Kg6 {[%emt 0:00:19]} (36... a5 $11) 37. Bd8 {[%emt 0:00:47]} Nd6 {[%emt 0:01:00] White stays focused until the end.} ({Black should play} 37... g4 $1 $14) 38. Rg1 $1 $18 {[%emt 0:00:32]} Ne4 {[%emt 0:01:17] [#]} 39. Bxg5 $1 {[%emt 0:03:22][%mdl 64] Remove Defender} Nf2+ {[%emt 0:00:47] [#]} (39... Nxg5 $2 40. h4 $18) (39... Bxa4 $16 40. Bh4+ Kf5) 40. Ke3 $1 {[%emt 0:00:27]} Nxh3 {[%emt 0:00:20]} 41. Rg3 {[%emt 0:30:22]} Nxg5 {[%emt 0:32:43]} (41... Bd7) 42. Kf4 {[%emt 0:00:15]} Kf6 {[%emt 0:00:32] Threatens to win with ...Ne6+.} 43. Rxg5 {[%emt 0:00:17] a5 would be deadly. KR-KB} h4 {[%emt 0:00:41]} 44. a5 {[%emt 0:00:42]} h3 {[%emt 0:00:00]} 45. Rh5 {[%emt 0:00:00]} Bd7 {[%emt 0:00:00]} 46. Rxd5 {[%emt 0:00:00]} Bc6 {[%emt 0:00:00]} 47. Rh5 {[%emt 0:00:00]} Bg2 {[%emt 0:00:00]} 48. Kg3 {[%emt 0:00:00]} Ke6 {[%emt 0:00:00]} 49. c4 {[%emt 0:00:00][%cal Bc3c4,Bc4c5][%mdl 32]} Bf1 {[%emt 0:00:00]} 50. c5 {[%emt 0:00:00]} Bg2 {[%emt 0:00:00]} 51. Re5+ {[%emt 0:00:00]} Kf6 {[%emt 0:00:00]} 52. Kh2 {[%emt 0:00:00]} Bf1 {[%emt 0:00:00]} 53. Rd5 {[%emt 0:00:00]} Bg2 {[%emt 0:00:00]} 54. Re5 {[%emt 0:00:00]} Bf1 {[%emt 0:00:00]} 55. Kg3 {[%emt 0:00:00]} Bg2 {[%emt 0:00:00]} 56. Rh5 $2 {[%emt 0:00:00]} ({White has to play} 56. Re2 $18 Kf7 57. Re5) 56... Kg6 $2 {[%emt 0:00:00][%mdl 8192]} (56... Ke6 $11 57. Kh2 Bf3 58. Re5+ Kf6 59. Kxh3 Bc6) 57. Rxh3 {[%emt 0:05:11] A brilliant game!   Weighted Error Value: White=0.69/Black=0.58} 1-0

[Event "FIDE Zonal 4-2 Open 2023"]
[Site "Dimbroko"]
[Date "2023.03.30"]
[Round "8.3"]
[White "Cogan, Nicolas"]
[Black "Manan, Yoboue Hermann"]
[Result "1-0"]
[ECO "E62"]
[WhiteElo "2013"]
[BlackElo "2015"]
[Annotator "TA"]
[PlyCount "58"]
[EventDate "2023.03.25"]
[EventType "swiss"]
[EventCountry "IVO"]
[SourceTitle "playchess.com"]
[Source "ChessBase"]
[SourceQuality "1"]
[TimeControl "40/5400+30:1800+30"]

{[%evp 16,58,23,13,43,18,24,-9,17,-2,83,79,106,84,240,243,225,224,233,237,213,163,219,151,327,314,317,331,305,321,874,854,851,854,1287,918,978,972,957,821,910,1049,1857,1808,933]} 1. d4 {[%emt 0:01:58]} Nf6 {[%emt 0:00:08]} 2. c4 {[%emt 0:00:05]} g6 {[%emt 0:00:11]} 3. Nc3 {[%emt 0:00:08]} Bg7 {[%emt 0:00:10]} 4. g3 {[%emt 0:00:09]} d6 {[%emt 0:00:49]} 5. Bg2 {[%emt 0:00:17]} c6 {[%emt 0:00:24]} 6. Nf3 {[%emt 0:00:38]} Bf5 {[%emt 0:00:57]} 7. O-O {[%emt 0:02:56]} O-O {[%emt 0:00:19]} 8. Nh4 {[%emt 0:01:52] 8.Ne1 deserves study.} Be6 {[%emt 0:01:14]} 9. d5 {[%emt 0:02:09]} Bd7 {[%emt 0:00:54] E62: King's Indian: Fianchetto: 6...c6 and Panno Variation (6...Nc6) without ...a6.} 10. e4 {[%emt 0:01:09]} Ng4 {[%emt 0:01:36] [#]} 11. h3 $146 {[%emt 0:02:55]} ({Predecessor:} 11. Qe2 cxd5 12. cxd5 Qc7 13. h3 Ne5 14. Bg5 Re8 15. Rac1 Na6 16. f4 Nc4 17. f5 {1-0 Uten (1986)-Anish,R (1616) BAN-chT 1st League 2022 (9.3)}) 11... Ne5 {[%emt 0:00:49] The position is equal.} 12. Qe2 {[%emt 0:00:21] [#] Black must now prevent f4.} Qb6 {[%emt 0:01:03]} (12... cxd5 $11 13. cxd5 Qc8) 13. b3 $16 {[%emt 0:03:49]} Rc8 {[%emt 0:06:48][%cal Oe5c4]} 14. Bb2 $36 {[%emt 0:03:18][%mdl 2048] White is on the roll.} cxd5 $2 {[%emt 0:06:34]} (14... Na6 $16 {was necessary.}) 15. Nxd5 $18 {[%emt 0:11:42]} Qd8 {[%emt 0:00:43]} 16. f4 {[%emt 0:00:34] Wards off f6} Nec6 {[%emt 0:00:42]} 17. Bxg7 {[%emt 0:00:20]} Kxg7 {[%emt 0:00:22]} 18. Qb2+ {[%emt 0:00:33]} f6 {[%emt 0:01:22]} (18... Kg8 $142 19. Rad1 Na6) 19. Rae1 {[%emt 0:06:29][%cal Oe4e5] And now e5! would win.} Nb4 $2 {[%emt 0:01:42]} (19... Be6 $16 {was called for.} 20. e5 (20. f5 Bf7 $11) 20... Bxd5) 20. Nxb4 {[%emt 0:00:28]} Qb6+ {[%emt 0:00:23]} 21. Kh2 {[%emt 0:00:23]} Qxb4 {[%emt 0:00:08]} 22. e5 {[%emt 0:00:20] Strongly threatening exf6+.} dxe5 {[%emt 0:02:06]} (22... Rf8 23. exf6+ exf6) 23. fxe5 {[%emt 0:00:39] White is clearly winning.} Rf8 {[%emt 0:01:46]} 24. a3 {[%emt 0:01:29]} Qc5 {[%emt 0:02:20]} 25. Bxb7 {[%emt 0:00:32] b4 would be deadly.} Bc6 {[%emt 0:00:47]} 26. b4 {[%emt 0:01:05]} Qxc4 {[%emt 0:00:55]} 27. Bxa8 {[%emt 0:00:33] exf6+ is the strong threat.} Bxa8 {[%emt 0:00:43]} 28. exf6+ {[%emt 0:00:11]} exf6 {[%emt 0:00:41]} 29. Re7+ {[%emt 0:00:21][%mdl 64] [#] Deflection} Kg8 {[%emt 0:01:24] Black got outplayed after the opening.   Weighted Error Value: White=0.18 (very precise) /Black=0.65} 1-0

[Event "FIDE Zonal 4-2 Open 2023"]
[Site "Dimbroko"]
[Date "2023.03.30"]
[Round "8.4"]
[White "Nean, Franck Anderson"]
[Black "De Gondo, Simplice Armel"]
[Result "1-0"]
[ECO "D30"]
[WhiteElo "1851"]
[BlackElo "2086"]
[Annotator "TA"]
[PlyCount "95"]
[EventDate "2023.03.25"]
[EventType "swiss"]
[EventCountry "IVO"]
[SourceTitle "playchess.com"]
[Source "ChessBase"]
[SourceQuality "1"]
[TimeControl "40/5400+30:1800+30"]

{[%evp 9,95,24,32,29,29,24,26,18,29,10,15,14,0,0,4,0,56,51,58,52,60,-16,0,-18,-25,-22,-21,-53,-53,-61,-63,-62,-40,-56,-54,-56,-58,-74,-31,-31,-42,-47,-18,-46,-6,-66,0,0,0,0,0,0,0,0,0,0,0,0,0,0,52,52,47,58,52,62,55,59,89,75,105,59,98,14,14,14,93,8,8,8,110,111,580,0,0,0,29983,29984]} 1. d4 {[%emt 0:00:07]} d5 {[%emt 0:00:01]} 2. c4 {[%emt 0:00:11]} c6 {[%emt 0:00:01]} 3. Nf3 {[%emt 0:00:14]} e6 {[%emt 0:00:03]} 4. e3 {[%emt 0:00:35]} Nd7 {[%emt 0:00:04]} 5. Bd3 {[%emt 0:00:27]} Bd6 {[%emt 0:00:02]} 6. e4 {[%emt 0:01:07] D30: Queen's Gambit Declined: Systems without Nc3.} dxe4 {[%emt 0:00:17]} 7. Bxe4 {[%emt 0:00:03]} Ngf6 {[%emt 0:00:21]} 8. Bc2 {[%emt 0:00:12] White has an edge.} b6 {[%emt 0:02:02]} 9. O-O {[%emt 0:00:25]} O-O {[%emt 0:00:04] [#]} 10. Bg5 $146 {[%emt 0:00:33]} ({Predecessor:} 10. Nc3 Bb7 11. Qe2 c5 12. dxc5 Bxc5 13. Bg5 h6 14. Bh4 Qe7 15. Rad1 Rad8 16. a3 {½-½ Tunik,G (2486)-Zubov,O (2568) Voronezh op-A 2008 (4)}) 10... Qc7 {[%emt 0:00:02]} 11. Nc3 {[%emt 0:01:34]} Bb7 {[%emt 0:00:06]} 12. Qd3 {[%emt 0:01:58]} g6 {[%emt 0:02:18]} (12... a6 $11) 13. Rfe1 $14 {[%emt 0:02:30]} a6 {[%emt 0:00:30]} 14. Rad1 {[%emt 0:07:06]} c5 {[%emt 0:08:03]} 15. d5 {[%emt 0:03:34]} (15. Ba4 $14) 15... exd5 $1 $11 {[%emt 0:02:26]} 16. Nxd5 {[%emt 0:01:24]} Nxd5 {[%emt 0:00:02]} 17. cxd5 {[%emt 0:00:16]} Rfe8 {[%emt 0:00:08] Against Qe4} 18. b3 {[%emt 0:06:07]} Ne5 {[%emt 0:08:29]} 19. Nxe5 {[%emt 0:02:01]} Bxe5 {[%emt 0:00:03]} 20. h4 {[%emt 0:06:58]} Qd6 {[%emt 0:00:12]} 21. Qf3 {[%emt 0:06:30]} Bd4 {[%emt 0:02:59]} 22. Be4 {[%emt 0:07:48]} f5 {[%emt 0:04:51]} 23. Bd3 {[%emt 0:02:35]} Bxd5 {[%emt 0:00:06]} (23... Qxd5 24. Bc4 $11) 24. Bc4 {[%emt 0:02:01]} Bxc4 {[%emt 0:00:14]} 25. bxc4 {[%emt 0:00:15][%cal Oe1e7]} Qd7 {[%emt 0:01:03][%cal Oe8e4] Prevents Re7.} (25... Rac8 {is interesting.} 26. h5 Re6 27. Rb1 Rce8) 26. Be3 {[%emt 0:05:42]} Rad8 {[%emt 0:02:27]} 27. h5 {[%emt 0:03:51]} (27. Bxd4 $1 $11 Rxe1+ 28. Rxe1 cxd4 29. Qb3) 27... Re4 {[%emt 0:04:25]} (27... Re6 $15) 28. Bxd4 {[%emt 0:04:32]} Rxd4 {[%emt 0:09:26]} 29. Rxd4 {[%emt 0:00:17]} cxd4 {[%emt 0:06:53][%mdl 4096] Endgame KQR-KQR} 30. Qb3 {[%emt 0:00:35]} d3 {[%emt 0:09:48]} (30... gxh5 31. c5+ Kh8 32. cxb6 $16 (32. Qxb6 Rg8 $14)) 31. c5+ {[%emt 0:00:27]} Qd5 {[%emt 0:00:02]} 32. Qxd5+ {[%emt 0:14:59]} Rxd5 {[%emt 0:00:23]} 33. cxb6 {[%emt 0:00:04] KR-KR} d2 {[%emt 0:02:12]} 34. Rd1 {[%emt 0:00:25]} gxh5 {[%emt 0:00:11]} (34... Rb5 $11) 35. a4 $1 $14 {[%emt 0:02:26][%cal Ba2a4,Ba4a5][%mdl 32] Strongly threatening b7.} Rd7 {[%emt 0:01:13]} 36. a5 $1 {[%emt 0:00:45]} Kg7 {[%emt 0:11:50]} 37. Kf1 $1 {[%emt 0:00:46]} Rd5 $1 {[%emt 0:00:02]} 38. Ke2 {[%emt 0:00:24]} Rxa5 {[%emt 0:00:02]} 39. Rb1 {[%emt 0:00:35][%cal Ob6b7] b7! would be deadly.} ({Reject} 39. Rxd2 $6 Re5+ 40. Kf3 Rb5 $11) (39. Kxd2 Rb5 40. Ra1 (40. Rh1 Kg6 $17) 40... Rxb6 $17) 39... Rd5 {[%emt 0:01:08]} 40. Kd1 $1 {[%emt 0:00:59] White threatens b7 and mate.} ({Much worse is} 40. b7 $6 d1=Q+ 41. Rxd1 Re5+ 42. Kf3 Rb5 $11) 40... Rd8 $1 {[%emt 0:00:04] [#]} 41. b7 {[%emt 0:30:03]} (41. Ra1 $1 $16) 41... Rb8 $11 {[%emt 0:30:24]} 42. Kxd2 {[%emt 0:00:05]} Kf6 {[%emt 0:00:39] [#]} (42... Kf8 $11 {remains equal.}) 43. Ke3 {[%emt 0:02:39]} ({White should play} 43. Rb6+ $1 $16 Ke7 44. Rh6 (44. Rxa6 Rxb7 45. Rh6 Rb2+ 46. Ke3 Kf7 $11)) 43... Ke5 {[%emt 0:00:03]} 44. g3 {[%emt 0:02:52][%cal Bg2g3,Bg3f4][%mdl 32]} f4+ {[%emt 0:02:02]} 45. gxf4+ $16 {[%emt 0:00:21]} Kf5 $2 {[%emt 0:00:03][%mdl 8192]} (45... Kd6 $16 {is tougher.}) 46. Kf3 $2 {[%emt 0:07:28]} (46. Kd4 $18 {Threatens to win with Kd5.} h4 47. Kd5) 46... h4 $11 {[%emt 0:00:03]} 47. Rb6 {[%emt 0:00:42]} Rxb7 $2 {[%emt 0:03:39][%mdl 8192]} 48. Rxb7 {[%emt 0:07:02] Weighted Error Value: White=0.24 (precise) /Black=0.42} 1-0

[Event "FIDE Zonal 4-2 Open 2023"]
[Site "Dimbroko"]
[Date "2023.03.30"]
[Round "8.5"]
[White "Barcon, Harmon"]
[Black "Kennedy Zinnah Kengo"]
[Result "1/2-1/2"]
[ECO "C01"]
[WhiteElo "1928"]
[BlackElo "1785"]
[Annotator "TA"]
[PlyCount "136"]
[EventDate "2023.03.25"]
[EventType "swiss"]
[EventCountry "IVO"]
[SourceTitle "playchess.com"]
[Source "ChessBase"]
[SourceQuality "1"]
[TimeControl "40/5400+30:1800+30"]

{[%evp 14,136,13,6,26,10,17,1,6,-13,0,10,18,22,22,31,32,18,59,13,43,11,31,16,25,18,16,0,43,17,26,0,-3,-77,-54,-65,0,0,0,0,0,0,0,0,0,0,0,0,25,25,26,26,25,23,29,27,132,132,158,160,164,96,119,8,8,8,27,7,7,0,0,0,35,0,0,0,0,-22,0,0,0,0,0,0,0,0,45,45,45,45,122,122,776,776,601,529,4129,4129,4129,1542,727,684,684,600,600,593,593,586,545,14,14,0,471,0,426,426,426,393,414,412,404,359,302,174,200]} 1. e4 {[%emt 0:00:02]} e6 {[%emt 0:00:11]} 2. d4 {[%emt 0:00:05]} d5 {[%emt 0:00:12]} 3. exd5 {[%emt 0:00:02]} exd5 {[%emt 0:00:09]} 4. Nf3 {[%emt 0:00:09]} Nf6 {[%emt 0:00:18]} 5. Bd3 {[%emt 0:00:02]} Bd6 {[%emt 0:00:14]} 6. O-O {[%emt 0:00:05]} O-O {[%emt 0:00:06]} 7. h3 {[%emt 0:00:25]} h6 {[%emt 0:00:25]} 8. Re1 {[%emt 0:00:07]} Nbd7 {[%emt 0:00:44] C01: French: Exchange Variation.} 9. Nbd2 {[%emt 0:00:04]} c5 {[%emt 0:00:59]} 10. c3 {[%emt 0:00:43]} c4 {[%emt 0:01:04] [#] The position is equal.} 11. Bf1 $146 {[%emt 0:00:17]} ({Predecessor:} 11. Bc2 Re8 12. b3 b5 13. a4 b4 14. cxb4 cxb3 15. Rxe8+ Qxe8 16. Bxb3 Bxb4 17. Nf1 {0-1 Ushenina,A (2409)-Mamedjarova,T (2223) Wch U20 Girls 2005 (11)}) 11... Re8 {[%emt 0:00:44]} 12. b3 {[%emt 0:00:03]} cxb3 {[%emt 0:00:33]} 13. axb3 {[%emt 0:00:02]} Nf8 {[%emt 0:00:25]} 14. Bd3 {[%emt 0:00:10]} a6 {[%emt 0:00:27]} 15. Bb2 {[%emt 0:00:28]} Be6 {[%emt 0:00:14]} 16. c4 {[%emt 0:00:42]} (16. Ne5 $14 {was preferrable.}) 16... Rc8 {[%emt 0:00:48]} 17. Rc1 {[%emt 0:01:23]} (17. c5 $5 {[%cal Rc5d6]} Bc7 18. b4 $14) 17... b6 {[%emt 0:00:42][%cal Bb7b6,Bb6b5,Bb5b4][%mdl 32]} 18. cxd5 {[%emt 0:05:21]} Bxd5 {[%emt 0:00:41]} 19. Rxe8 {[%emt 0:00:38]} Qxe8 {[%emt 0:00:28]} 20. Bxa6 {[%emt 0:00:10]} (20. Rxc8 {simplifies} Qxc8 21. Nc4 Qc7 22. Nxd6 Qxd6 23. Bxa6 Qb4 24. Bf1) 20... Ra8 {[%emt 0:00:31]} 21. Bc4 {[%emt 0:00:27]} Ra2 {[%emt 0:00:20] Hoping for ...Bxf3.} 22. Bc3 {[%emt 0:01:09]} (22. Bxd5 {simplifies} Nxd5 23. Nc4 Bb4 24. Rc2) 22... b5 {[%emt 0:00:56]} 23. Bd3 {[%emt 0:02:57]} (23. Bf1 $1 $11) 23... b4 $17 {[%emt 0:00:28]} 24. Ba1 {[%emt 0:00:15]} Bf4 {[%emt 0:00:43] Repels Ne5} (24... Qa8 $1 $15 25. Bc4 Ne6 26. Bxd5 Nxd5) 25. Rc2 $11 {[%emt 0:00:35]} Qa8 {[%emt 0:01:01]} 26. Rxa2 {[%emt 0:01:08]} Qxa2 {[%emt 0:00:14]} 27. Qb1 {[%emt 0:00:43]} Qa8 {[%emt 0:04:26] Threatens to win with ...Bxd2.} 28. Bf1 {[%emt 0:00:17]} Ne4 {[%emt 0:00:30]} 29. Nxe4 {[%emt 0:02:25]} Bxe4 {[%emt 0:00:09]} 30. Qd1 {[%emt 0:00:13]} Qa2 {[%emt 0:00:23]} 31. d5 {[%emt 0:01:34]} Bxd5 {[%emt 0:03:28][%mdl 64] [#] Deflection} 32. Qxd5 {[%emt 0:04:59]} (32. Qd4 {is more complex.} Ne6 33. Qxd5 Qxa1 34. g3) 32... Qxa1 {[%emt 0:00:21]} 33. g3 {[%emt 0:00:03]} Bc7 {[%emt 0:00:53]} 34. Qb7 {[%emt 0:01:03]} Qc3 {[%emt 0:00:20]} (34... Bd6 $11 {remains equal.}) 35. Bc4 $16 {[%emt 0:00:22] Kg2 is the strong threat.} Ne6 {[%emt 0:01:37]} 36. Kg2 {[%emt 0:00:19]} Kf8 {[%emt 0:02:50]} 37. Ng1 {[%emt 0:02:25]} (37. h4 $18) 37... Bd6 {[%emt 0:01:03] [#]} 38. Ne2 {[%emt 0:01:54]} (38. Qd7 $1 $16 {[%cal Rd7d6]} Be5 39. Nf3) 38... Qf6 $11 {[%emt 0:02:53]} 39. Qd7 {[%emt 0:00:59]} Qe7 {[%emt 0:02:24]} (39... Bc5 {looks sharper.} 40. Qc8+ Ke7 41. f4 Qf5) 40. Qc8+ {[%emt 0:00:56]} Nd8 {[%emt 0:00:09]} 41. Qf5 {[%emt 0:32:38]} g6 {[%emt 0:30:46]} 42. Qd3 {[%emt 0:00:50]} Nc6 {[%emt 0:00:39]} 43. f4 {[%emt 0:03:30]} (43. Qd2 $5) 43... Qf6 {[%emt 0:02:06]} 44. Qe4 $40 {[%emt 0:00:50][%mdl 128] White attacks.} Ne7 {[%emt 0:00:35]} 45. h4 {[%emt 0:02:06]} h5 {[%emt 0:01:57]} 46. Nd4 {[%emt 0:01:18]} Bc5 {[%emt 0:00:31]} 47. Nf3 {[%emt 0:01:04]} Qf5 {[%emt 0:01:45]} 48. Qe5 {[%emt 0:10:37]} Qc2+ {[%emt 0:04:07]} 49. Kh3 {[%emt 0:00:19] Really sharp!} Qf5+ {[%emt 0:00:17]} 50. Qxf5 {[%emt 0:00:10]} Nxf5 $14 {[%emt 0:00:09][%mdl 4096] Endgame KBN-KBN} 51. Ne5 {[%emt 0:00:14] aiming for Nd7+.} Bf2 {[%emt 0:00:24]} (51... Bd4 $14) 52. Bxf7 $16 {[%emt 0:00:11]} (52. Nxf7 $6 Kg7 $11) 52... Bxg3 $2 {[%emt 0:00:08][%mdl 8192]} (52... Nxg3 $16 53. Kg2 (53. Nxg6+ $2 {loses.} Kxf7 54. Ne5+ Ke6 $19) (53. Bxg6 Ne2 $16) 53... Bd4 54. Kxg3 Bxe5 55. Bxg6 Bc3 56. Bxh5 Kg7) 53. Bxg6 $18 {[%emt 0:01:20]} (53. Nxg6+ $2 {is the wrong capture.} Kxf7 54. Ne5+ Ke6 $19) 53... Bxf4 {[%emt 1:08:33]} 54. Nd3 {[%emt 0:00:04]} Nd4 {[%emt 0:00:00]} 55. Nxf4 {[%emt 0:00:29]} Nxb3 {[%emt 0:00:00]} 56. Nd3 {[%emt 0:00:33]} ({Not} 56. Nxh5 Nd2 57. Nf4 Kg7 $18) (56. Nd5 $142 Kg7 57. Bxh5) 56... Nd4 {[%emt 0:00:00]} 57. Be4 {[%emt 0:00:36]} b3 {[%emt 0:00:00]} 58. Kg3 {[%emt 0:01:01]} Ke7 {[%emt 0:00:00]} 59. Kf4 {[%emt 0:00:13]} Kf6 {[%emt 0:00:00]} 60. Ke3 {[%emt 0:02:33]} Nc2+ {[%emt 0:00:00]} 61. Kd2 $2 {[%emt 0:00:41]} (61. Kf3 $18 Na3 62. Nb2) 61... Nd4 $11 {[%emt 0:00:00]} 62. Ke3 $2 {[%emt 0:01:17][%mdl 8192]} (62. Ne1 $11) 62... Nc2+ $1 $18 {[%emt 0:00:00]} 63. Kf4 {[%emt 0:00:12]} Nd4 {[%emt 0:00:00]} 64. Nb2 {[%emt 0:00:38]} Ne6+ {[%emt 0:00:00]} 65. Ke3 {[%emt 0:00:15]} Ng7 {[%emt 0:00:00]} 66. Nd3 {[%emt 0:00:26]} Ne6 {[%emt 0:00:00]} 67. Bg2 {[%emt 0:03:52]} Nf8 {[%emt 0:00:00]} 68. Nf4 {[%emt 0:01:13]} (68. Kf4 $142) 68... Ng6 {[%emt 0:00:00] Weighted Error Value: White=0.17 (very precise) /Black=0.16 (very precise)} 1/2-1/2